fUSD/lending_fUSD_20240122
["ID","MTS","AMOUNT","RATE_DAILY","PERIOD"]
[312539743,1705950639122,-150.12,0.00026555,2]
[312539745,1705950639133,-2823.35,0.00026575,2]
[312539747,1705950639143,-606.4,0.0002658,2]
[312539749,1705950639154,-150.12,0.00026788,2]
[312539751,1705950639163,-150.0,0.00026796,2]
[312539753,1705950639174,-400.0,0.00027,3]
[312539755,1705950639183,-150.12,0.00027021,2]
[312539757,1705950639192,-150.12,0.00027254,2]
[312539759,1705950639204,-3000.0,0.00027397,2]
[312539762,1705950639213,-3000.0,0.00027397,2]
[312539764,1705950639223,-3000.0,0.00027397,2]
[312539766,1705950639232,-3000.0,0.00027397,2]
[312539768,1705950639241,-3000.0,0.00027397,2]
[312539770,1705950639251,-3000.0,0.00027397,2]
[312539772,1705950639259,-3000.0,0.00027397,2]
[312539774,1705950639269,-4161.3253,0.00027397,2]
[312539776,1705950639278,-425.79,0.00027397,2]
[312539778,1705950639287,-179.73,0.00027397,2]
[312539780,1705950639296,-150.12,0.00027487,2]
[312539782,1705950639305,-150.12,0.0002772,2]
[312539784,1705950639314,-425.79,0.00027758,2]
[312539786,1705950639323,-1000.0,0.00027828,2]
[312539788,1705950639333,-233.0,0.00027829,2]
[312539790,1705950639342,-1127.41,0.00027888,2]
[312539792,1705950639351,-150.12,0.00027953,2]
[312539794,1705950639360,-205.36744459,0.00028,2]
[312539796,1705950639370,-425.79,0.00028118,2]
[312539797,1705950639379,-150.0,0.00028166,2]
[312539799,1705950639388,-167.0,0.00028307,2]
[312539801,1705950639397,-179.28,0.00028353,2]
[312539803,1705950639407,-425.79,0.00028479,2]
[312539806,1705950639416,-425.79,0.00028839,2]
[312539808,1705950639426,-450.0,0.00029,3]
[312539810,1705950639435,-8598.14117923,0.00029,2]
[312539812,1705950639444,-425.79,0.000292,2]
[312539814,1705950639456,-606.4,0.00029237,2]
[312539816,1705950639465,-1127.41,0.00029531,2]
[312539818,1705950639475,-425.79,0.0002956,2]
[312539820,1705950639484,-305.97,0.00029697,2]
[312539822,1705950639494,-425.79,0.00029921,2]
[312539824,1705950639503,-150.0,0.00029999,2]
[312539826,1705950639512,-159.35016999,0.00029999,2]
[312539828,1705950639521,-150.0,0.00029999,2]
[312539830,1705950639531,-159.35016999,0.00029999,2]
[312539832,1705950639540,-158.98643164,0.0003,4]
[312539834,1705950639550,-1807.84533026,0.0003,4]
[312539836,1705950639559,-72920.57629857,0.0003,4]
[312539838,1705950639569,-814.18421461,0.0003,4]
[312539840,1705950639579,-155.0,0.0003,2]
[312539842,1705950639589,-753.88247836,0.0003,2]
[312539844,1705950639598,-309135.18197128,0.0003,4]
[312539846,1705950639608,-463.9958283,0.0003,4]
[312539848,1705950639618,-155.0,0.0003,4]
[312539850,1705950639628,-107818.66951592,0.0003,3]
[312539852,1705950639638,-135212.21606929,0.0003,2]
[312539866,1705950640028,-360.0,0.0003,2]
[312539867,1705950640164,-9519.3824713,0.0003,2]
[312539868,1705950640176,-3206.98809242,0.0003,2]
[312539869,1705950640186,-115555.05185601,0.0003,2]
[312539870,1705950640202,-6079.7853,0.0003,2]
[312539871,1705950640214,-1037.7367,0.0003,2]
[312539872,1705950640225,-415.19,0.0003,2]
[312539873,1705950640236,-6063.50752776,0.0003,2]
[312539874,1705950640248,-1215.22699113,0.0003,2]
[312539878,1705950640972,-553.54469613,0.0003,2]
[312539879,1705950640983,-2206.78429854,0.0003,2]
[312539880,1705950641165,-624.03501934,0.00025496,2]
[312539881,1705950641176,-3823.79783177,0.0003,2]
[312539882,1705950641320,-0.04294843,0.0003,2]
[312539883,1705950641340,-49388.46273022,0.0003,2]
[312539886,1705950641364,-508.90128622,0.0003,2]
[312539911,1705950643245,-506511.4437771,0.0003,2]
[312539912,1705950643257,-17477.90595952,0.0003,2]
[312539913,1705950643306,-5225.47920691,0.0003,2]
[312539914,1705950643317,-4150.0,0.0003,2]
[312539932,1705950646692,-1851.49650572,0.000229,2]
[312539937,1705950647029,-432.03619297,0.000229,2]
[312539940,1705951246716,198.75,0.00020518,2]
[312539941,1705951428141,-230.73082258,0.00021297,2]
[312539942,1705951428171,-155.0,0.00021298,2]
[312539943,1705951429793,1265.91696724,0.00021296,2]
[312539944,1705951430810,155.0,0.00021296,2]
[312539945,1705951483734,150.0,0.00021117,2]
[312539946,1705951533288,-1265.91696724,0.00021828,2]
[312539947,1705951533309,-230.73082258,0.00021828,2]
[312539948,1705951533336,-371.35,0.00021829,2]
[312539949,1705951533358,-8076.97,0.00021928,2]
[312539950,1705951542140,200.0,0.00021849,2]
[312539951,1705951542905,-2248.00674586,0.00021983,2]
[312539952,1705951542927,-250.0,0.00021987,2]
[312539953,1705951542949,-250.0,0.00022038,2]
[312539954,1705951542970,-155.55426514,0.00022115,2]
[312539955,1705951542991,-26408.39222502,0.00022116,2]
[312539956,1705951626110,-311.05035363,0.00021814,2]
[312539957,1705951638080,-305.55560706,0.00021814,2]
[312539958,1705951754541,951.19,0.00021693,2]
[312539959,1705951776297,204.24,0.00019785,2]
[312539960,1705951795808,852.96844475,0.00021693,2]
[312539961,1705951811603,698.99700542,0.00021693,2]
[312539962,1705951821318,159.29,0.00021664,2]
[312540002,1705951832159,-230.73082258,0.00021808,2]
[312540004,1705951832169,-1265.91696724,0.00021809,2]
[312540005,1705951832179,-207.09403931,0.00021814,2]
[312540006,1705951832189,-2971.314,0.00021828,2]
[312540007,1705951832198,-232.85,0.00021918,2]
[312540008,1705951832207,-159.1,0.00021918,2]
[312540009,1705951832217,-9250.65885557,0.00021955,2]
[312540010,1705951832227,-156.00443668,0.00021955,2]
[312540011,1705951832236,-150.0,0.00021956,2]
[312540012,1705951832245,-17665.0686354,0.00021957,2]
[312540013,1705951835005,-365.35210606,0.00021957,2]
[312540014,1705951835099,-1175.3,0.00021957,2]
[312540015,1705951835114,-585.09694117,0.00021957,2]
[312540016,1705951835131,-332.78,0.00021957,2]
[312540017,1705951835231,-1184.454,0.00021957,2]
[312540018,1705951835245,-2591.94831737,0.00021957,2]
[312540019,1705951835257,-387.8354114,0.00022032,2]
[312540020,1705951835270,-1198.89,0.00022032,2]
[312540060,1705951838121,-413.2745886,0.00022032,2]
[312540062,1705951838132,-917.26709732,0.00022032,2]
[312540067,1705951838174,-1029.35290268,0.00022032,2]
[312540068,1705951838185,-204.24,0.00022049,2]
[312540069,1705951838197,-298.17399244,0.00022265,2]
[312540071,1705951838209,-1704.70178594,0.000223,2]
[312540073,1705951838220,-159.1,0.00022489,2]
[312540075,1705951838232,-499.99,0.00022569,2]
[312540078,1705951838243,-11084.67693185,0.0002267,6]
[312540080,1705951838254,-483.00898298,0.0002267,2]
[312540082,1705951838264,-180.60041889,0.00022698,2]
[312540084,1705951838275,-225.96958111,0.00022698,2]
[312540086,1705951838285,-1224.46,0.00022699,2]
[312540088,1705951838296,-2111.8184,0.000227,2]
[312540090,1705951838307,-56317.4407,0.000227,2]
[312540092,1705951838318,-251.3528,0.000227,2]
[312540094,1705951838334,-8076.97,0.00022739,2]
[312540097,1705951838345,-1806.79854753,0.0002274,2]
[312540099,1705951838359,-8193.20145247,0.0002274,2]
[312540101,1705951838370,-327.16185942,0.00022798,2]
[312540104,1705951838382,-1000.0,0.000228,2]
[312540105,1705951838392,-500.0,0.000228,2]
[312540107,1705951838407,-881.7444,0.000228,2]
[312540109,1705951838419,-778.5798,0.000228,2]
[312540110,1705951838430,-2428.9975,0.000228,2]
[312540112,1705951838445,-468.3207248,0.000228,2]
[312540113,1705951838457,-1212.28543505,0.00022897,2]
[312540115,1705951838472,-646.96215638,0.00022897,2]
[312540117,1705951838483,-155.0,0.00022897,2]
[312540118,1705951838494,-4350.07010966,0.00022898,2]
[312540120,1705951838505,-155.36847651,0.00022898,2]
[312540122,1705951838516,-190.90927065,0.00022899,2]
[312540123,1705951838527,-155.32025318,0.00022899,2]
[312540125,1705951838538,-155.3967532,0.00022899,2]
[312540126,1705951838550,-155.0,0.00022899,2]
[312540128,1705951838562,-42860.40992012,0.000229,2]
[312540130,1705951838581,-59296.36079422,0.000229,2]
[312540132,1705951838594,-57428.14062356,0.000229,2]
[312540135,1705951838607,-508.620414,0.000229,2]
[312540137,1705951838620,-11992.5229144,0.000229,2]
[312540140,1705951838633,-282.25751733,0.000229,2]
[312540142,1705951838648,-57780.0,0.000229,2]
[312540145,1705951838665,-14851.68781637,0.000229,2]
[312540147,1705951838676,-5848.4102,0.000229,2]
[312540149,1705951838686,-30879.4459,0.000229,2]
[312540151,1705951838697,-39878.31,0.000229,2]
[312540154,1705951838709,-885.12,0.00022901,2]
[312540156,1705951838720,-1008.73686817,0.00023,20]
[312540158,1705951838732,-159.1,0.00023061,2]
[312540160,1705951838744,-150.0,0.00023115,2]
[312540162,1705951838755,-951.19,0.00023337,2]
[312540164,1705951838767,-8076.97,0.0002355,2]
[312540167,1705951838779,-201.27157051,0.00024,2]
[312540169,1705951838790,-155.0,0.00024,2]
[312540171,1705951838801,-210.0,0.00024151,2]
[312540173,1705951838812,-167.0,0.00024297,2]
[312540175,1705951838831,-204.24,0.00024313,2]
[312540177,1705951838842,-8076.97,0.00024362,2]
[312540179,1705951838853,-150.0,0.00024485,2]
[312540181,1705951838865,-823.7,0.0002454,2]
[312540184,1705951838877,-250.0,0.00024658,2]
[312540186,1705951838890,-951.19,0.00024981,2]
[312540188,1705951838901,-167.43304946,0.00025,2]
[312540190,1705951838912,-202.08717836,0.00025,2]
[312540192,1705951838924,-933.94016922,0.00025,2]
[312540194,1705951838935,-158.71925605,0.00025,2]
[312540196,1705951838946,-1584.56156338,0.00025,2]
[312540199,1705951838957,-303.55478187,0.00025,2]
[312540201,1705951838968,-1249.31192892,0.00025,2]
[312540203,1705951838979,-350.0,0.00025,3]
[312540205,1705951838990,-8076.97,0.00025173,2]
[312540207,1705951839001,-624.03501934,0.00025496,2]
[312540209,1705951839012,-731.16640343,0.00025499,2]
[312540212,1705951839023,-885.12,0.00025764,2]
[312540214,1705951839038,-1500.0,0.00026,2]
[312540216,1705951839049,-104.5865103,0.00026279,2]
[312540218,1705951839063,-69.3134897,0.00026279,2]
[312540220,1705951839080,-167.0,0.00026302,2]
[312540223,1705951839091,-182.38,0.00026348,2]
[312540225,1705951839101,-780.6446503,0.00026575,2]
[312540227,1705951839114,-1214.37358567,0.00026575,2]
[312540230,1705951839132,-828.33176403,0.00026575,2]
[312540232,1705951839142,-204.24,0.00026577,2]
[312540234,1705951839153,-182.38,0.00026609,2]
[312540237,1705951839163,-951.19,0.00026625,2]
[312540239,1705951839174,-164.98280908,0.00026698,2]
[312540241,1705951839187,-146.60280396,0.00026698,2]
[312540243,1705951839198,-182.38,0.0002687,2]
[312540245,1705951839208,-161.73873038,0.00026998,2]
[312540248,1705951839218,-400.0,0.00027,3]
[312540250,1705951839229,-182.38,0.00027131,2]
[312540252,1705951839239,-823.7,0.00027267,2]
[312540254,1705951839250,-468.32072479,0.00027356,3]
[312540256,1705951839261,-182.38,0.00027392,2]
[312540257,1705951839271,-3000.0,0.00027397,2]
[312540258,1705951839281,-2552.52897729,0.00027397,2]
[312540259,1705951839294,-447.47102271,0.00027397,2]
[312540260,1705951839305,-2325.3097419,0.00027397,2]
[312540261,1705951839318,-674.6902581,0.00027397,2]
[312540262,1705951839331,-855.56492494,0.00027397,2]
[312540263,1705951839349,-879.47774667,0.00027397,2]
[312540264,1705951839362,-1264.95732839,0.00027397,2]
[312540265,1705951839372,-3000.0,0.00027397,2]
[312540266,1705951839382,-3000.0,0.00027397,2]
[312540268,1705951839395,-3000.0,0.00027397,2]
[312540271,1705951839407,-4161.3253,0.00027397,2]
[312540273,1705951839417,-233.49,0.00027397,2]
[312540275,1705951839428,-182.38,0.00027653,2]
[312540277,1705951839440,-233.49,0.00027758,2]
[312540279,1705951839450,-182.38,0.00027914,2]
[312540281,1705951839461,-205.36744459,0.00028,2]
[312540283,1705951839471,-233.49,0.00028118,2]
[312540286,1705951839484,-182.38,0.00028174,2]
[312540288,1705951839495,-951.19,0.00028269,2]
[312540290,1705951839506,-167.0,0.00028307,2]
[312540292,1705951839516,-182.38,0.00028435,2]
[312540294,1705951839527,-233.49,0.00028479,2]
[312540296,1705951839537,-2674.0,0.000286,2]
[312540298,1705951839547,-1748.0,0.000286,2]
[312540301,1705951839559,-885.12,0.00028627,2]
[312540303,1705951839570,-182.38,0.00028696,2]
[312540305,1705951839583,-336.36851555,0.00028798,2]
[312540307,1705951839593,-233.49,0.00028839,2]
[312540309,1705951839604,-204.24,0.00028841,2]
[312540311,1705951839616,-182.38,0.00028957,2]
[312540313,1705951839627,-450.0,0.00029,3]
[312540315,1705951839638,-2211.47072714,0.00029098,2]
[312540317,1705951839650,-233.49,0.000292,2]
[312540320,1705951839661,-182.38,0.00029218,2]
[312540322,1705951839672,-182.38,0.00029479,2]
[312540324,1705951839683,-233.49,0.0002956,2]
[312540326,1705951839694,-300.0,0.000297,10]
[312540328,1705951839704,-182.38,0.0002974,2]
[312540330,1705951839715,-700.0,0.000298,10]
[312540333,1705951839726,-6186.14735885,0.000299,2]
[312540335,1705951839737,-152.56584061,0.000299,2]
[312540337,1705951839748,-5000.0,0.000299,2]
[312540339,1705951839759,-189.32522557,0.000299,2]
[312540341,1705951839770,-1100.0,0.000299,10]
[312540343,1705951839780,-951.19,0.00029913,2]
[312540345,1705951839791,-233.49,0.00029921,2]
[312540348,1705951839802,-162.69560449,0.0002999,2]
[312540350,1705951839812,-823.7,0.00029994,2]
[312540352,1705951839828,-2781.52303549,0.00029998,2]
[312540354,1705951839839,-228.31585659,0.00029998,2]
[312540356,1705951839851,-215.77509695,0.00029998,2]
[312540358,1705951839862,-547.70351409,0.00029999,2]
[312540361,1705951839873,-1260.34340866,0.00029999,4]
[312540364,1705951839885,-8499.53883008,0.0003,2]
[312540366,1705951839895,-21441.00928611,0.0003,2]
[312540370,1705951839908,-4461.73199585,0.0003,2]
[312540372,1705951839920,-565.01390817,0.0003,2]
[312540429,1705951840485,-834.87280297,0.0003,2]
[312540434,1705951840512,-278.35365433,0.0003,2]
[312540436,1705951840530,-18236.50337328,0.0003,2]
[312540438,1705951840542,-720.10049987,0.0003,2]
[312540440,1705951840554,-591.5,0.0003,2]
[312540443,1705951840584,-851.29689408,0.0003,2]
[312540444,1705951840595,-413.95308472,0.0003,2]
[312540445,1705951840608,-11996.01635322,0.0003,2]
[312540446,1705951840623,-3455.74896993,0.0003,2]
[312540451,1705951840641,-1144.6153312,0.0003,2]
[312540454,1705951840654,-258.99999999,0.0003,2]
[312540456,1705951840665,-17873.50757118,0.0003,2]
[312540458,1705951840677,-41113.34501603,0.0003,2]
[312540461,1705951840689,-645.5925653,0.0003,2]
[312540463,1705951840705,-384.9054171,0.0003,2]
[312540465,1705951840810,-10084.67462289,0.0003,2]
[312540466,1705951840823,-8062.51290825,0.0003,2]
[312540467,1705951841764,-411.96310886,0.0003,2]
[312540468,1705951841775,-298.14097755,0.0003,2]
[312540469,1705951841791,-758.43892321,0.0003,2]
[312540470,1705951841803,-2902.84819354,0.0003,2]
[312540471,1705951842336,-12209.38013616,0.0003,2]
[312540472,1705951842348,-438.78040507,0.0003,2]
[312540473,1705951842360,-1659.77367416,0.0003,2]
[312540474,1705951842379,-1634.92347253,0.0003,2]
[312540475,1705951842454,-1997.45,0.0003,2]
[312540476,1705951842469,-4156.56,0.0003,2]
[312540477,1705951842483,-944.4,0.0003,2]
[312540478,1705951842495,-401.18544648,0.0003,2]
[312540479,1705951842514,-2560.00000001,0.0003,2]
[312540480,1705951842526,-291.33054083,0.0003,2]
[312540481,1705951842538,-257.26297847,0.0003,2]
[312540482,1705951842668,-615.575,0.0003,2]
[312540483,1705951842680,-8655.84196968,0.0003,2]
[312540484,1705951842693,-2791.0099997,0.0003,2]
[312540529,1705951843237,-3140.64526894,0.0003,2]
[312540533,1705951843250,-1047.61913724,0.0003,2]
[312540537,1705951843262,-746.37411194,0.0003,2]
[312540540,1705951843274,-314.18773176,0.0003,2]
[312540542,1705951843285,-352.7041674,0.0003,2]
[312540545,1705951843297,-608.80204842,0.0003,2]
[312540547,1705951843308,-539.30699596,0.0003,2]
[312540550,1705951843324,-1354.75936659,0.0003,2]
[312540552,1705951843342,-4012.1504,0.0003,2]
[312540554,1705951843353,-296.29805924,0.0003,2]
[312540556,1705951843365,-2408.043014,0.0003,2]
[312540562,1705951843417,-265.380005,0.0003,2]
[312540565,1705951843430,-3077.6682786,0.0003,2]
[312540567,1705951843445,-790.20458939,0.0003,2]
[312540569,1705951843460,-473.40238774,0.0003,2]
[312540572,1705951843489,-3492.89382905,0.0003,2]
[312540573,1705951843501,-314.49519184,0.0003,2]
[312540574,1705951843512,-2353.46716002,0.0003,2]
[312540576,1705951843524,-13954.95,0.0003,2]
[312540594,1705951843668,-417.85,0.0003,2]
[312540596,1705951843679,-9368.0,0.0003,2]
[312540598,1705951843691,-1173.18926266,0.0003,2]
[312540602,1705951843707,-508.76,0.0003,2]
[312540604,1705951843718,-712.29205035,0.0003,2]
[312540611,1705951843772,-3687.31200603,0.0003,2]
[312540612,1705951843816,-763.60893783,0.0003,2]
[312540613,1705951843831,-1922.10690032,0.0003,2]
[312540614,1705951843842,-4175.42840931,0.0003,2]
[312540615,1705951843852,-3438.03532046,0.0003,2]
[312540616,1705951843925,-334753.63301208,0.0003,2]
[312540617,1705951843936,-93092.4884519,0.0003,2]
[312540618,1705951843946,-155.0,0.0003,2]
[312540619,1705951843955,-1807.84533026,0.0003,4]
[312540620,1705951843965,-309135.18197128,0.0003,4]
[312540621,1705951843974,-462.65503608,0.0003,4]
[312540622,1705951843983,-155.0,0.0003,4]
[312540623,1705951843992,-753.88247836,0.0003,2]
[312540624,1705951844002,-158.98643164,0.0003,4]
[312540625,1705951844011,-814.18421461,0.0003,4]
[312540626,1705951844020,-72920.57629857,0.0003,4]
[312540627,1705951844029,-200.0,0.0003,2]
[312540628,1705951844039,-187.2259011,0.0003,2]
[312540629,1705951844048,-187.2259011,0.0003,2]
[312540630,1705951844057,-187.2259011,0.0003,2]
[312540631,1705951844066,-187.2259011,0.0003,2]
[312540632,1705951844077,-187.2259011,0.0003,2]
[312540633,1705951844088,-187.2259011,0.0003,2]
[312540634,1705951844098,-187.2259011,0.0003,2]
[312540635,1705951844107,-187.2259011,0.0003,2]
[312540636,1705951844117,-187.2259011,0.0003,2]
[312540637,1705951844126,-187.2259011,0.0003,2]
[312540638,1705951844135,-187.2259011,0.0003,2]
[312540639,1705951844145,-187.2259011,0.0003,2]
[312540640,1705951844154,-187.2259011,0.0003,2]
[312540641,1705951844164,-187.2259011,0.0003,2]
[312540642,1705951844173,-187.2259011,0.0003,2]
[312540643,1705951844182,-187.2259011,0.0003,2]
[312540644,1705951844191,-187.2259011,0.0003,2]
[312540645,1705951844200,-187.2259011,0.0003,2]
[312540646,1705951844209,-187.2259011,0.0003,2]
[312540647,1705951844218,-187.2259011,0.0003,2]
[312540648,1705951844228,-187.2259011,0.0003,2]
[312540649,1705951844237,-187.2259011,0.0003,2]
[312540650,1705951844246,-187.2259011,0.0003,2]
[312540651,1705951844255,-187.2259011,0.0003,2]
[312540652,1705951844264,-187.2259011,0.0003,2]
[312540653,1705951844273,-187.2259011,0.0003,2]
[312540654,1705951844282,-187.2259011,0.0003,2]
[312540655,1705951844292,-187.2259011,0.0003,2]
[312540656,1705951844301,-187.2259011,0.0003,2]
[312540657,1705951844310,-187.2259011,0.0003,2]
[312540658,1705951844319,-187.2259011,0.0003,2]
[312540659,1705951844334,-187.2259011,0.0003,2]
[312540660,1705951844343,-187.2259011,0.0003,2]
[312540661,1705951844353,-187.2259011,0.0003,2]
[312540662,1705951844362,-187.2259011,0.0003,2]
[312540663,1705951844371,-187.2259011,0.0003,2]
[312540664,1705951844380,-187.2259011,0.0003,2]
[312540665,1705951844390,-187.2259011,0.0003,2]
[312540666,1705951844409,-187.2259011,0.0003,2]
[312540667,1705951844421,-187.2259011,0.0003,2]
[312540668,1705951844431,-187.2259011,0.0003,2]
[312540669,1705951844440,-187.2259011,0.0003,2]
[312540670,1705951844449,-187.2259011,0.0003,2]
[312540671,1705951844458,-187.2259011,0.0003,2]
[312540672,1705951844467,-187.2259011,0.0003,2]
[312540673,1705951844476,-187.2259011,0.0003,2]
[312540674,1705951844486,-187.2259011,0.0003,2]
[312540675,1705951844495,-187.2259011,0.0003,2]
[312540676,1705951844505,-187.2259011,0.0003,2]
[312540677,1705951844515,-187.2259011,0.0003,2]
[312540678,1705951844524,-187.2259011,0.0003,2]
[312540679,1705951844534,-187.2259011,0.0003,2]
[312540680,1705951844543,-187.2259011,0.0003,2]
[312540681,1705951844553,-187.2259011,0.0003,2]
[312540682,1705951844562,-187.2259011,0.0003,2]
[312540683,1705951844572,-187.2259011,0.0003,2]
[312540684,1705951844587,-187.2259011,0.0003,2]
[312540685,1705951844597,-187.2259011,0.0003,2]
[312540686,1705951844607,-187.2259011,0.0003,2]
[312540687,1705951844617,-187.2259011,0.0003,2]
[312540688,1705951844627,-187.2259011,0.0003,2]
[312540689,1705951844637,-187.2259011,0.0003,2]
[312540690,1705951844646,-187.2259011,0.0003,2]
[312540691,1705951844656,-187.2259011,0.0003,2]
[312540692,1705951844666,-187.2259011,0.0003,2]
[312540693,1705951844676,-187.2259011,0.0003,2]
[312540694,1705951844685,-187.2259011,0.0003,2]
[312540695,1705951844695,-187.2259011,0.0003,2]
[312540696,1705951844704,-187.2259011,0.0003,2]
[312540697,1705951844714,-187.2259011,0.0003,2]
[312540698,1705951844724,-187.2259011,0.0003,2]
[312540699,1705951844733,-187.2259011,0.0003,2]
[312540700,1705951844743,-187.2259011,0.0003,2]
[312540701,1705951844752,-187.2259011,0.0003,2]
[312540702,1705951844761,-187.2259011,0.0003,2]
[312540703,1705951844771,-187.2259011,0.0003,2]
[312540704,1705951844780,-187.2259011,0.0003,2]
[312540705,1705951844790,-187.2259011,0.0003,2]
[312540706,1705951844799,-187.2259011,0.0003,2]
[312540707,1705951844809,-182.38,0.00030001,2]
[312540708,1705951844818,-252.04058821,0.000301,4]
[312540709,1705951844833,-1326.35190746,0.00030136,3]
[312540710,1705951844842,-1326.35190746,0.00030136,3]
[312540711,1705951844852,-153.84,0.00030137,2]
[312540712,1705951844862,-182.38,0.00030261,2]
[312540713,1705951844871,-425.79,0.00030281,2]
[312540714,1705951844880,-233.49,0.00030281,2]
[312540715,1705951844889,-182.38,0.00030522,2]
[312540716,1705951844899,-371.35,0.0003056,2]
[312540717,1705951844908,-425.79,0.00030642,2]
[312540718,1705951844917,-233.49,0.00030642,2]
[312540719,1705951844926,-182.38,0.00030783,2]
[312540720,1705951844936,-4530.45039734,0.00031,14]
[312540721,1705951844946,-75436.86585496,0.00031,2]
[312540722,1705951844954,-425.79,0.00031002,2]
[312540723,1705951844964,-233.49,0.00031002,2]
[312540724,1705951844974,-182.38,0.00031044,2]
[312540725,1705951844984,-204.24,0.00031105,2]
[312540726,1705951844993,-182.38,0.00031305,2]
[312540727,1705951845002,-425.79,0.00031363,2]
[312540728,1705951845012,-233.49,0.00031363,2]
[312540729,1705951845022,-885.12,0.00031489,2]
[312540730,1705951845032,-161.57,0.00031507,2]
[312540731,1705951845042,-180.0,0.00031644,2]
[312540732,1705951845053,-425.79,0.00031723,2]
[312540733,1705951845063,-233.49,0.00031723,2]
[312540734,1705951845072,-215.397955,0.00031764,2]
[312540735,1705951845090,-940.48918206,0.00031796,4]
[312540736,1705951845099,-522.97068852,0.00031796,4]
[312540737,1705951845109,-180.82183586,0.00031796,2]
[312540738,1705951845119,-2020.53490244,0.00031796,4]
[312540739,1705951845129,-157.19713918,0.00031796,2]
[312540740,1705951845139,-155.50156782,0.00031796,4]
[312540741,1705951845149,-155.26555109,0.00031796,4]
[312540742,1705951845158,-905.41355492,0.00031796,4]
[312540743,1705951845168,-155.51550435,0.00031796,4]
[312540744,1705951845176,-3029.53701716,0.00031796,4]
[312540745,1705951845185,-1767.60331455,0.00031796,4]
[312540746,1705951845194,-1948.44870117,0.00031796,4]
[312540747,1705951845203,-155.98461131,0.00031796,4]
[312540748,1705951845212,-343.17836134,0.00031796,4]
[312540749,1705951845222,-2514.34633528,0.00031796,4]
[312540750,1705951845231,-162.18562075,0.00031796,4]
[312540751,1705951845241,-231.93292492,0.00031796,4]
[312540752,1705951845251,-155.27446598,0.00031796,4]
[312540753,1705951845261,-155.0,0.00031796,4]
[312540754,1705951845270,-224.16083161,0.00031796,4]
[312540755,1705951845280,-191.64869268,0.00031797,4]
[312540756,1705951845289,-183.31693013,0.00031797,4]
[312540757,1705951845300,-317.43646122,0.00031797,2]
[312540758,1705951845310,-360.8545052,0.00031797,4]
[312540759,1705951845322,-6546.0301907,0.000318,2]
[312540760,1705951845339,-468.32072479,0.00031913,5]
[312540761,1705951845350,-942.53099387,0.00032,4]
[312540762,1705951845360,-13086.11608583,0.00032,4]
[312540763,1705951845369,-425.79,0.00032084,2]
[312540764,1705951845378,-233.49,0.00032084,2]
[312540765,1705951845388,-6186.14735878,0.00032279,4]
[312540766,1705951845399,-425.79,0.00032444,2]
[312540767,1705951845410,-233.49,0.00032444,2]
[312540768,1705951845419,-823.7,0.0003272,2]
[312540769,1705951845429,-425.79,0.00032805,2]
[312540770,1705951845439,-233.49,0.00032805,2]
[312540771,1705951845449,-255.97,0.00032877,15]
[312540772,1705951845459,-162.69560449,0.0003299,2]
[312540773,1705951845469,-30012.45790699,0.00033,4]
[312540774,1705951845478,-206.0,0.00033,2]
[312540775,1705951845488,-425.79,0.00033165,2]
[312540776,1705951845498,-233.49,0.00033165,2]
[312540777,1705951845508,-204.24,0.00033369,2]
[312540778,1705951845517,-425.79,0.00033526,2]
[312540779,1705951845527,-233.49,0.00033526,2]
[312540780,1705951845536,-189.32522557,0.0003388,2]
[312540781,1705951845546,-425.79,0.00033886,2]